{"text_format":"1","workbook":"xlsx","n_sheets":1,"sheets":["Various"],"not_rendered":{"charts":0,"images":0,"macros":1,"external_links":4,"defined_names":22,"comments":1,"pivot_tables":0},"unopened":[],"bounds":{"document_bytes":16777216,"sheet_cells":100000,"rows_first":2000,"rows_last":500,"rows_between":2000,"halvings":0,"cell_chars":16384,"cell_head_chars":4096},"cells_cut":0,"cells_raw":0,"read":"whole","date_system":"1900"}

{"sheet":"Various","index":0,"n_rows":39,"n_cols":26,"rows_kept":39,"cut":false,"hidden":false,"merged":[[1,1,2,5],[2,19,2,21],[3,19,3,21],[4,19,4,21],[5,1,5,2],[5,4,5,7],[5,19,5,21],[1,7,2,14],[17,20,17,21],[7,1,7,2],[7,4,7,7],[8,1,8,2],[10,1,10,2],[10,19,11,21],[14,20,14,21],[15,20,15,21],[16,1,16,3],[16,20,16,21],[19,1,19,3],[21,1,21,3],[23,2,23,4],[24,2,24,3],[25,2,25,3],[32,6,32,7],[34,1,35,3],[26,1,27,1],[38,1,38,3],[31,6,31,7],[30,1,30,7]]}
[]
[null,"Various Formulas  © Rocketwaveuk",null,null,null,null,null,"Unlocked"]
[null,null,null,null,null,null,null,null,null,null,null,null,null,null,null,null,null,null,null,"Hex Number Converter",null,null,null,null,{"$f":"16^1*Y4","v":160},{"$f":"Z4","v":"5"}]
[null,null,null,null,null,null,null,null,null,null,null,null,null,null,null,null,null,null,null,"06A5",null,null,null,null,{"$f":"VLOOKUP(MID(T4,3,1),Y7:Z23,2,0)","v":"10"},{"$f":"VLOOKUP((MID(T4,4,1)),Y7:Z23,2,0)","v":"5"}]
[null,null,null,null,null,null,null,null,null,null,null,null,null,null,null,null,null,null,null,"Base 10 Number =",null,null,null,null,{"$f":"16^3*Y6","v":0},{"$f":"16^2*Z6","v":1536}]
[null,"Wave Length",null,null,"Peek V Rms Values",null,null,null,null,null,null,null,null,null,null,null,null,null,null,{"$f":"Y5+Z5+Y3+Z3","v":1701},null,null,null,null,{"$f":"VLOOKUP((MID(T4,1,1)),Y7:Z23,2,0)","v":"0"},{"$f":"VLOOKUP((MID(T4,2,1)),Y7:Z23,2,1)","v":"6"}]
[null,"Freq in  MHz",145.5,null,"Peek",70.7,"Rms",{"$f":"F7*0.707","v":49.984899999999996},null,null,null,null,null,null,null,null,null,null,null,null,null,null,null,null,"HEX","DEC"]
[null,{"$f":"300/C7","v":2.0618556701030926},null,null,"Rms v Peek Values",null,null,null,null,null,null,null,null,null,null,null,null,null,null,null,null,null,null,null,"0","0"]
[null,"Frequency",null,null,"Rms",50,"Peek",{"$f":"F9/0.707","v":70.721357850070731},null,null,null,null,null,null,null,null,null,null,null,null,null,null,null,null,"1","1"]
[null,"Wave in Mtrs",6,null,null,null,null,null,null,null,null,null,null,null,null,null,null,null,null,null,null,null,null,null,"2","2"]
[null,{"$f":"300/C10","v":50},null,null,null,null,null,null,null,null,null,null,null,null,null,null,null,null,null,"Gear Box Ratio And Speeds",null,null,null,null,"3","3"]
[null,null,null,null,null,null,null,null,null,null,null,null,null,null,null,null,null,null,null,null,null,null,null,null,"4","4"]
[null,null,null,null,null,null,null,null,null,null,null,null,null,null,null,null,null,null,null,"Gear Ratio","Min Revs","Max  Revs",null,null,"5","5"]
[null,null,null,null,null,null,null,null,null,null,null,null,null,null,null,null,null,null,null,"Input Speed",1000,7500,null,null,"6","6"]
[null,null,null,null,null,null,null,null,null,null,null,null,null,null,null,null,null,null,null,"Input Gear",32,null,null,null,"7","7"]
[null,null,null,null,null,null,null,null,null,null,null,null,null,null,null,null,null,null,null,"Spindle Ratio 1",36,null,null,null,"8","8"]
[null,"Basic Ohms Law",null,null,null,null,null,null,null,null,null,null,null,null,null,null,null,null,null,"Spindle Ratio 2",40,null,null,null,"9","9"]
[null,"V","I","Ω R",null,null,null,null,null,null,null,null,null,null,null,null,null,null,null," Output Gear",48,null,null,null,"a","10"]
[null,240,null,19.600000000000001,null,null,null,null,null,null,null,null,null,null,null,null,null,null,null,"Output Speed",{"$f":"(U14*(U15/U16)*(U16/U17)*(U17/U18))","v":666.66666666666663},{"$f":"(V14*(U15/U16)*(U16/U17)*(U17/U18))","v":5000},null,null,"b","11"]
[null,{"$f":"IF(B19=0,IF(OR(C19=0,D19=0),0,IF(AND((C19*D19)<1,(C19*D19)>0.001),MROUND(((C19*D19)*1000),0.001)&\" mV\",IF((C19*D19)<0.001,MROUND(((C19*D19)*1000000),0.001)&\" uV\",MROUND((C19*D19),0.001)&\" Volts\"))),(IF(C19=0,IF(OR(B19=0,D19=0),0,IF(AND((B19/D19)<1,(B19/D19)>0.001),MROUND(((B19/D19)*1000),0.001)&\" mA\",IF((B19/D19)<0.001,MROUND(((B19/D19)*1000000),0.001)&\" uA\",MROUND((B19/D19),0.001)&\" Amps\"))),IF(D19=0,IF(OR(B19=0,C19=0),0,IF(AND((B19/C19)<1,(B19/C19)>0.001),MROUND(((B19/C19)*1000),0.001)&\" mΩ\",IF((B19/C19)<0.001,MROUND(((B19/C19)*1000000),0.001)&\" uΩ\",MROUND((B19/C19),0.001)&\" Ohms\"))),\"Leave Desired Quantity Empty\"))))","v":"12.245 Amps"},null,null,null,null,null,null,null,null,null,null,null,null,null,null,null,null,null,null,null,null,null,null,"c","12"]
[null,"Power Rating",{"$f":"IF(B19=0,IF(OR(C19=0,D19=0),0,C19*D19),(IF(C19=0,IF(OR(B19=0,D19=0),0,B19/D19),IF(D19=0,IF(OR(B19=0,C19=0),0,B19/C19),\"Leave Desired Quantity Empty\"))))","v":12.244897959183673},{"$f":"IF(B19=0,MROUND(C21*C19,0.001),IF(C19=0,MROUND(B19*C21,0.001),IF(D19=0,MROUND(B19*C19,0.001),0)))&\" Watts\"","v":"2938.776 Watts"},null,null,null,null,null,null,null,null,null,null,null,null,null,null,null,null,null,null,null,null,"d","13"]
[null,null,null,null,null,null,null,null,null,null,null,null,null,null,null,null,null,null,null,null,null,null,null,null,"e","14"]
[null,null,null,null,null,null,null,null,null,null,null,null,null,null,null,null,null,null,null,null,null,null,null,null,"f","15"]
[null,{"$f":"IF(C27=D27,1,IF(C27=E27,1,IF(C27=C28,1,IF(C27=D28,1,IF(C27=E28,1,IF(D27=E27,1,IF(D27=C28,1,IF(D27=D28,1,IF(D27=E28,1,IF(E27=C28,1,IF(E27=D28,1,IF(E27=E28,1,IF(C28=D28,1,IF(C28=E28,1,IF(D28=E28,1,0)))))))))))))))","v":0},"Lottery Random Numbers"]
[null,null,"Highest Number Allowed  >",null,49]
[null,null,"Lowest Number Allowed  >",null,1]
[null,"Your Lottery Numbers Are",{"$f":"INT(RAND()*($E$25-$E$26)+$E$26)","v":31},23,26]
[null,null,47,3,39]
[null,"    Click  Here >>>"]
[]
[null,"Betting Odds Calculator"]
[null,"Bet","Odd","To","Ratio","You Win","Including Bet ="]
[null,10,5,2,{"$f":"C33/D33","v":2.5},{"$f":"(B33*E33)","v":25},{"$f":"(B33*E33)+B33","v":35}]
[]
[null,"Speed / Time /Distance  Convertion"]
[]
[null,"Distance Miles","Time Min's","Speed Mph"]
[null,170,null,28]
[null,{"$f":"IF(D38=0,IF(OR(B38=0,C38=0),0,ROUNDDOWN((60/C38)*B38,2)&\" Mph\"),(IF(C38=0,IF(OR(B38=0,D38=0),0,QUOTIENT((ROUNDDOWN(B38/(D38/60),2)),60)&\"  Hours \"&ROUNDDOWN((MOD(B38/(D38/60),60)),0)&\" Minutes\"),IF(B38=0,IF(OR(C38=0,D38=0),0,ROUNDDOWN((C38/60)*D38,2)&\" Miles\"),\"Leave Desired Quantity Empty\"))))","v":"6  Hours 4 Minutes"}]